[Event "78th GEO-ch Women 1st League 2021"]
[Site "Tbilisi"]
[Date "2021.03.23"]
[Round "6.1"]
[White "Mikadze, Miranda"]
[Black "Lomaia, Diana"]
[Result "1-0"]
[ECO "C96"]
[WhiteElo "2269"]
[BlackElo "1946"]
[Annotator "ChessBase"]
[PlyCount "67"]
[EventDate "2021.03.18"]
[EventType "swiss"]
[EventCountry "GEO"]
[SourceTitle "playchess.com"]
[Source "ChessBase"]
[SourceQuality "1"]
[TimeControl "5400+30"]

1. e4 {[%emt 0:00:00]} c5 {[%emt 0:00:13]} 2. c3 {[%emt 0:00:00]} Nf6 {[%emt 0:00:27]} 3. Bd3 {[%emt 0:00:00]} e5 {[%emt 0:03:25]} 4. Nf3 {[%emt 0:00:03]} Nc6 {[%emt 0:00:58]} 5. O-O {[%emt 0:00:05]} d6 {[%emt 0:00:17]} 6. Re1 {[%emt 0:00:49]} Be7 {[%emt 0:00:38]} 7. Bc2 {[%emt 0:01:55]} O-O {[%emt 0:01:21]} 8. h3 {[%emt 0:00:48]} a6 {[%emt 0:06:32]} 9. d4 {[%emt 0:00:53]} cxd4 {[%emt 0:00:53]} 10. cxd4 {[%emt 0:00:07]} b5 {[%emt 0:01:24]} 11. Nc3 {[%emt 0:00:04]} h6 {[%emt 0:02:01]} 12. Be3 {[%emt 0:05:56]} Bb7 {[%emt 0:04:15]} 13. d5 {[%emt 0:00:05]} Na5 {[%emt 0:01:50]} 14. b3 {[%emt 0:00:04]} Rc8 {[%emt 0:00:57]} 15. Ne2 {[%emt 0:00:09]} Ba8 {[%emt 0:01:57]} 16. Ng3 {[%emt 0:03:19]} Re8 {[%emt 0:14:01]} 17. Qd2 {[%emt 0:00:32]} Bf8 {[%emt 0:02:50]} 18. Nf5 {[%emt 0:02:41]} Nb7 {[%emt 0:02:18]} 19. b4 {[%emt 0:00:58]} Nd7 {[%emt 0:09:37]} 20. Bd3 {[%emt 0:03:48]} Nb6 {[%emt 0:00:59]} 21. Rec1 {[%emt 0:01:00]} Nc4 {[%emt 0:12:54]} 22. Qe2 {[%emt 0:02:27]} Na3 {[%emt 0:05:38]} 23. Qb2 {[%emt 0:01:44]} Nc4 {[%emt 0:00:25]} 24. Bxc4 {[%emt 0:00:10]} bxc4 {[%emt 0:04:58]} 25. Nd2 {[%emt 0:00:28]} g6 {[%emt 0:03:10]} 26. Nxh6+ {[%emt 0:00:35]} Bxh6 {[%emt 0:00:06]} 27. Bxh6 {[%emt 0:00:03]} g5 {[%emt 0:03:04]} 28. h4 {[%emt 0:01:22]} f6 {[%emt 0:00:49]} 29. Qa3 {[%emt 0:04:57]} Kh7 {[%emt 0:08:05]} 30. hxg5 {[%emt 0:00:18]} fxg5 {[%emt 0:00:45]} 31. Qh3 {[%emt 0:00:54]} Kg6 {[%emt 0:00:20]} 32. g4 {[%emt 0:00:10]} Kf6 {[%emt 0:02:12]} 33. Nf3 {[%emt 0:01:38]} Rg8 {[%emt 0:01:36]} 34. Qh5 {[%emt 0:00:08]} 1-0

[Event "78th GEO-ch Women 1st League 2021"]
[Site "Tbilisi"]
[Date "2021.03.23"]
[Round "6.2"]
[White "Vakhania, Alexandra"]
[Black "Khurtsilava, Inga"]
[Result "1-0"]
[ECO "A47"]
[WhiteElo "2134"]
[BlackElo "2260"]
[Annotator "ChessBase"]
[PlyCount "147"]
[EventDate "2021.03.18"]
[EventType "swiss"]
[EventCountry "GEO"]
[SourceTitle "playchess.com"]
[Source "ChessBase"]
[SourceQuality "1"]
[TimeControl "5400+30"]

1. d4 {[%emt 0:03:18]} Nf6 {[%emt 0:00:00]} 2. Nf3 {[%emt 0:00:07]} b6 {[%emt 0:00:12]} 3. Bg5 {[%emt 0:02:01]} Ne4 {[%emt 0:01:23]} 4. Bh4 {[%emt 0:00:55]} d5 {[%emt 0:01:09]} 5. e3 {[%emt 0:00:37]} Qd6 {[%emt 0:02:04]} 6. c3 {[%emt 0:01:58]} Bg4 {[%emt 0:03:22]} 7. Be2 {[%emt 0:01:08]} Nd7 {[%emt 0:01:43]} 8. Nbd2 {[%emt 0:00:19]} Qh6 {[%emt 0:08:22]} 9. h3 {[%emt 0:16:52]} Bxf3 {[%emt 0:01:28]} 10. Nxf3 {[%emt 0:00:30]} g5 {[%emt 0:00:31]} 11. Bg3 {[%emt 0:00:59]} Nxg3 {[%emt 0:00:41]} 12. fxg3 {[%emt 0:00:06]} g4 {[%emt 0:00:38]} 13. Ne5 {[%emt 0:00:33]} Nxe5 {[%emt 0:08:49]} 14. dxe5 {[%emt 0:00:14]} c6 {[%emt 0:02:58]} 15. Qa4 {[%emt 0:03:48]} Bg7 {[%emt 0:05:06]} 16. Qf4 {[%emt 0:01:06]} Qe6 {[%emt 0:09:25]} 17. Bxg4 {[%emt 0:03:33]} Qxe5 {[%emt 0:00:04]} 18. O-O-O {[%emt 0:03:20]} h5 {[%emt 0:03:42]} 19. Bf3 {[%emt 0:02:46]} Qe6 {[%emt 0:01:38]} 20. Kb1 {[%emt 0:00:42]} Be5 {[%emt 0:01:25]} 21. Qa4 {[%emt 0:04:12]} b5 {[%emt 0:00:28]} 22. Qc2 {[%emt 0:00:25]} Bxg3 {[%emt 0:03:34]} 23. e4 {[%emt 0:00:23]} dxe4 {[%emt 0:04:17]} 24. Bxe4 {[%emt 0:00:31]} Rd8 {[%emt 0:02:29]} 25. Bf5 {[%emt 0:00:44]} Qe5 {[%emt 0:01:06]} 26. Rxd8+ {[%emt 0:03:56]} Kxd8 {[%emt 0:00:09]} 27. Rd1+ {[%emt 0:00:02]} Kc7 {[%emt 0:00:17]} 28. Rd7+ {[%emt 0:01:56]} Kb6 {[%emt 0:03:01]} 29. a4 {[%emt 0:00:57]} Rb8 {[%emt 0:06:39]} 30. axb5 {[%emt 0:01:53]} cxb5 {[%emt 0:00:46]} 31. Be4 {[%emt 0:00:36]} Qc5 {[%emt 0:06:03]} 32. Qd1 {[%emt 0:01:26]} a5 {[%emt 0:05:24]} 33. Rd5 {[%emt 0:02:54]} Qe3 {[%emt 0:02:49]} 34. Bd3 {[%emt 0:05:46]} Qe1 {[%emt 0:04:44]} 35. Rxb5+ {[%emt 0:00:31]} Kc7 {[%emt 0:00:18]} 36. Qxe1 {[%emt 0:00:04]} Bxe1 {[%emt 0:00:04]} 37. Rxh5 {[%emt 0:00:04]} Kd6 {[%emt 0:00:38]} 38. Kc2 {[%emt 0:01:13]} Ra8 {[%emt 0:00:53]} 39. c4 {[%emt 0:03:12]} Bb4 {[%emt 0:00:11]} 40. Rd5+ {[%emt 0:00:31]} Kc7 {[%emt 0:01:20]} 41. h4 {[%emt 0:00:44]} Rg8 {[%emt 0:00:26]} 42. Bf1 {[%emt 0:01:27]} e6 {[%emt 0:01:12]} 43. Rd3 {[%emt 0:01:44]} f5 {[%emt 0:02:44]} 44. h5 {[%emt 0:00:40]} Rh8 {[%emt 0:01:16]} 45. Rh3 {[%emt 0:00:10]} Kd6 {[%emt 0:00:12]} 46. Be2 {[%emt 0:00:53]} Ke7 {[%emt 0:02:22]} 47. g4 {[%emt 0:01:00]} Kf6 {[%emt 0:00:19]} 48. gxf5 {[%emt 0:00:23]} exf5 {[%emt 0:00:13]} 49. Rg3 {[%emt 0:01:19]} Rh6 {[%emt 0:00:23]} 50. Kb3 {[%emt 0:01:32]} Be1 {[%emt 0:01:45]} 51. Rh3 {[%emt 0:09:02]} Ke5 {[%emt 0:01:15]} 52. Ka4 {[%emt 0:00:12]} Bd2 {[%emt 0:00:56]} 53. c5 {[%emt 0:00:53]} Rh8 {[%emt 0:01:19]} 54. Rd3 {[%emt 0:00:26]} Bb4 {[%emt 0:00:21]} 55. c6 {[%emt 0:00:08]} Bd6 {[%emt 0:00:42]} 56. Bf3 {[%emt 0:00:43]} Rb8 {[%emt 0:00:28]} 57. Rd5+ {[%emt 0:02:07]} Ke6 {[%emt 0:00:09]} 58. Rb5 {[%emt 0:00:29]} Rd8 {[%emt 0:01:39]} 59. Rxa5 {[%emt 0:02:50]} Bc7 {[%emt 0:00:01]} 60. Rc5 {[%emt 0:01:19]} Rd4+ {[%emt 0:00:30]} 61. Kb5 {[%emt 0:01:03]} Rd3 {[%emt 0:00:34]} 62. Rc3 {[%emt 0:00:16]} Rd2 {[%emt 0:01:19]} 63. b4 {[%emt 0:00:47]} Rd8 {[%emt 0:00:29]} 64. Re3+ {[%emt 0:01:36]} Kf6 {[%emt 0:00:03]} 65. Kc4 {[%emt 0:00:06]} Bb6 {[%emt 0:00:30]} 66. Rd3 {[%emt 0:00:05]} Re8 {[%emt 0:00:51]} 67. Kb5 {[%emt 0:01:25]} Rb8 {[%emt 0:00:19]} 68. Rd7 {[%emt 0:00:12]} Bc7+ {[%emt 0:00:18]} 69. Kc5 {[%emt 0:00:23]} Bb6+ {[%emt 0:00:48]} 70. Kd6 {[%emt 0:00:15]} Bf2 {[%emt 0:00:46]} 71. c7 {[%emt 0:00:18]} Bg3+ {[%emt 0:00:11]} 72. Kc5 {[%emt 0:00:12]} Rc8 {[%emt 0:01:07]} 73. Kc6 {[%emt 0:00:12]} Re8 {[%emt 0:00:35]} 74. b5 {[%emt 0:01:15]} 1-0

[Event "78th GEO-ch Women 1st League 2021"]
[Site "Tbilisi"]
[Date "2021.03.23"]
[Round "6.3"]
[White "Gvatua, Mariam"]
[Black "Gvetadze, Sofio"]
[Result "0-1"]
[ECO "B52"]
[WhiteElo "1343"]
[BlackElo "2317"]
[Annotator "ChessBase"]
[PlyCount "70"]
[EventDate "2021.03.18"]
[EventType "swiss"]
[EventCountry "GEO"]
[SourceTitle "playchess.com"]
[Source "ChessBase"]
[SourceQuality "1"]
[TimeControl "5400+30"]

1. d4 {[%emt 0:00:00]} c5 {[%emt 0:00:00]} 2. d5 {[%emt 0:00:00]} g6 {[%emt 0:00:00]} 3. e4 {[%emt 0:00:06]} Bg7 {[%emt 0:00:00]} 4. Nf3 {[%emt 0:00:16]} d6 {[%emt 0:00:04]} 5. Bb5+ {[%emt 0:01:10]} Bd7 {[%emt 0:00:20]} 6. Bxd7+ {[%emt 0:00:10]} Nxd7 {[%emt 0:00:07]} 7. O-O {[%emt 0:00:07]} Ngf6 {[%emt 0:00:12]} 8. Re1 {[%emt 0:00:27]} O-O {[%emt 0:00:39]} 9. Bd2 {[%emt 0:02:29]} b5 {[%emt 0:02:38]} 10. c3 {[%emt 0:00:39]} Re8 {[%emt 0:00:31]} 11. Bg5 {[%emt 0:00:57]} h6 {[%emt 0:04:16]} 12. Bh4 {[%emt 0:01:10]} Qc7 {[%emt 0:04:06]} 13. Bg3 {[%emt 0:05:10]} Nh5 {[%emt 0:00:42]} 14. Qc2 {[%emt 0:01:22]} Nb6 {[%emt 0:02:01]} 15. Nbd2 {[%emt 0:01:05]} Nxg3 {[%emt 0:00:19]} 16. hxg3 {[%emt 0:00:11]} e6 {[%emt 0:00:28]} 17. Qb3 {[%emt 0:01:24]} a6 {[%emt 0:00:30]} 18. Nf1 {[%emt 0:03:16]} exd5 {[%emt 0:14:13]} 19. exd5 {[%emt 0:00:15]} Qb7 {[%emt 0:00:25]} 20. Rxe8+ {[%emt 0:02:04]} Rxe8 {[%emt 0:00:28]} 21. Ne3 {[%emt 0:00:09]} Re4 {[%emt 0:01:46]} 22. Qc2 {[%emt 0:08:56]} Re7 {[%emt 0:03:07]} 23. Rd1 {[%emt 0:00:39]} h5 {[%emt 0:03:46]} 24. Nh4 {[%emt 0:02:50]} Re5 {[%emt 0:07:16]} 25. Nf3 {[%emt 0:00:18]} Re8 {[%emt 0:00:35]} 26. Nh4 {[%emt 0:00:06]} Kh7 {[%emt 0:06:13]} 27. Qd3 {[%emt 0:07:02]} Qe7 {[%emt 0:03:41]} 28. Re1 {[%emt 0:02:04]} Qf6 {[%emt 0:03:15]} 29. Qd2 {[%emt 0:02:12]} Bh6 {[%emt 0:01:12]} 30. f3 {[%emt 0:04:40]} Nc4 {[%emt 0:00:48]} 31. Qd3 {[%emt 0:00:57]} Rxe3 {[%emt 0:00:42]} 32. Rxe3 {[%emt 0:00:09]} Bxe3+ {[%emt 0:00:11]} 33. Kh2 {[%emt 0:00:06]} Bg5 {[%emt 0:00:12]} 34. Kh3 {[%emt 0:00:38]} Bxh4 {[%emt 0:00:13]} 35. gxh4 {[%emt 0:00:05]} Qf5+ {[%emt 0:00:09]} 0-1

[Event "78th GEO-ch Women 1st League 2021"]
[Site "Tbilisi"]
[Date "2021.03.23"]
[Round "6.4"]
[White "Pipia, Ekaterine"]
[Black "Tsotsonava, Elene"]
[Result "0-1"]
[ECO "B33"]
[WhiteElo "2019"]
[BlackElo "1805"]
[Annotator "NA"]
[PlyCount "134"]
[EventDate "2021.03.18"]
[EventType "swiss"]
[EventCountry "GEO"]
[SourceTitle "playchess.com"]
[Source "ChessBase"]
[SourceQuality "1"]
[TimeControl "5400+30"]

1. e4 {[%emt 0:00:03]} c5 {[%emt 0:00:00]} 2. Nf3 {[%emt 0:00:03]} Nc6 {[%emt 0:00:00]} 3. d4 {[%emt 0:00:26]} cxd4 {[%emt 0:00:00]} 4. Nxd4 {[%emt 0:00:04]} Nf6 {[%emt 0:00:06]} 5. Nc3 {[%emt 0:00:09]} e5 {[%emt 0:00:10]} 6. Ndb5 {[%emt 0:03:43]} d6 {[%emt 0:00:13]} 7. a4 {[%emt 0:02:11]} a6 {[%emt 0:04:22]} 8. Na3 {[%emt 0:00:23]} Be7 {[%emt 0:01:19]} 9. Bc4 {[%emt 0:05:58]} O-O {[%emt 0:01:03]} 10. O-O {[%emt 0:01:55]} Be6 {[%emt 0:03:17]} 11. f3 {[%emt 0:04:46]} Na5 {[%emt 0:12:53]} 12. Bd5 {[%emt 0:05:03]} Qc7 {[%emt 0:07:25]} 13. Be3 {[%emt 0:01:51]} Rac8 {[%emt 0:00:59]} 14. Qd2 {[%emt 0:05:17]} Bxd5 {[%emt 0:11:45]} 15. Nxd5 {[%emt 0:01:02]} Nxd5 {[%emt 0:00:08]} 16. Qxd5 {[%emt 0:01:14]} Nc4 {[%emt 0:00:28]} 17. Nxc4 {[%emt 0:00:36]} Qxc4 {[%emt 0:00:05]} 18. Qxb7 {[%emt 0:06:53]} Rc7 {[%emt 0:02:45]} 19. Qb6 {[%emt 0:05:35]} Rc6 {[%emt 0:07:50]} 20. Qb3 {[%emt 0:05:04]} Qxc2 {[%emt 0:00:59]} 21. Qd5 {[%emt 0:11:44]} Rfc8 {[%emt 0:07:15]} 22. Rf2 {[%emt 0:11:25]} Qc4 {[%emt 0:01:36]} 23. Qxc4 {[%emt 0:02:19]} Rxc4 {[%emt 0:00:53]} 24. Rd2 {[%emt 0:00:44]} g6 {[%emt 0:03:18]} 25. a5 {[%emt 0:02:29]} R8c6 {[%emt 0:04:45]} 26. Rad1 {[%emt 0:01:02]} f5 {[%emt 0:01:30]} 27. exf5 {[%emt 0:00:38]} gxf5 {[%emt 0:00:02]} 28. Rd3 {[%emt 0:03:14]} Kf7 {[%emt 0:01:12]} 29. Rb3 {[%emt 0:02:52]} Ke6 {[%emt 0:02:58]} 30. Rb8 {[%emt 0:03:23]} Rc2 {[%emt 0:04:34]} 31. b4 {[%emt 0:02:41]} Re2 {[%emt 0:01:13]} (31... d5 $17 32. Re1 Bd6) 32. b5 {[%emt 0:01:56]} axb5 {[%emt 0:01:29]} 33. Ra1 {[%emt 0:01:37]} Rxe3 {[%emt 0:11:48]} 34. a6 {[%emt 0:00:01]} d5 {[%emt 0:01:10]} 35. a7 {[%emt 0:02:12]} Bc5 {[%emt 0:00:21]} 36. Re8+ {[%emt 0:00:42]} Kf6 {[%emt 0:02:37]} 37. Rf8+ {[%emt 0:00:26]} Kg7 {[%emt 0:01:11]} 38. Rg8+ {[%emt 0:00:05]} Kh6 {[%emt 0:01:03]} 39. Kf1 {[%emt 0:00:23] [#]} Bxa7 $19 {[%emt 0:00:03]} 40. Rxa7 {[%emt 0:00:09]} f4 {[%emt 0:03:16]} 41. Rgg7 {[%emt 0:00:53]} Rc1+ {[%emt 0:00:33]} 42. Kf2 {[%emt 0:00:01]} Rc2+ {[%emt 0:00:12]} 43. Kf1 {[%emt 0:00:08]} Rc1+ {[%emt 0:00:02]} 44. Kf2 {[%emt 0:00:00]} Rce1 {[%emt 0:00:14]} 45. Rxh7+ {[%emt 0:00:49]} Kg6 {[%emt 0:00:03]} 46. Rhg7+ {[%emt 0:00:45]} Kf6 {[%emt 0:00:01]} 47. Rgf7+ {[%emt 0:00:05]} Ke6 {[%emt 0:00:03]} 48. Rfe7+ {[%emt 0:00:14]} Kd6 {[%emt 0:00:04]} 49. Red7+ {[%emt 0:00:16]} Kc5 {[%emt 0:01:54]} 50. Rac7+ {[%emt 0:01:34]} Kb4 {[%emt 0:01:21]} 51. Rc2 {[%emt 0:00:01]} d4 {[%emt 0:00:53]} 52. g4 {[%emt 0:00:36]} Kb3 {[%emt 0:01:13]} 53. Rd2 {[%emt 0:00:01]} Kc3 {[%emt 0:00:15]} 54. Ra2 {[%emt 0:00:01]} b4 {[%emt 0:00:31]} 55. g5 {[%emt 0:00:26]} b3 {[%emt 0:00:11]} 56. Rc7+ {[%emt 0:00:01]} Kd3 {[%emt 0:00:09]} 57. Rb2 {[%emt 0:00:05]} R3e2+ {[%emt 0:00:25]} 58. Rxe2 {[%emt 0:00:01]} Rxe2+ {[%emt 0:00:02]} 59. Kf1 {[%emt 0:00:09]} b2 {[%emt 0:00:57]} 60. Rb7 {[%emt 0:00:02]} Rc2 {[%emt 0:00:19]} 61. h4 {[%emt 0:03:09]} Rc1+ {[%emt 0:00:05]} 62. Kg2 {[%emt 0:00:09]} b1=Q {[%emt 0:00:06]} 63. Rxb1 {[%emt 0:00:06]} Rxb1 {[%emt 0:00:02]} 64. h5 {[%emt 0:00:04]} Ke3 {[%emt 0:00:53]} 65. g6 {[%emt 0:00:51]} d3 {[%emt 0:00:28]} 66. g7 {[%emt 0:00:05]} d2 {[%emt 0:00:48]} 67. g8=Q {[%emt 0:00:11]} d1=Q {[%emt 0:00:06]} 0-1

[Event "78th GEO-ch Women 1st League 2021"]
[Site "Tbilisi"]
[Date "2021.03.23"]
[Round "6.5"]
[White "Javakhishvili, Mariam"]
[Black "Janiashvili, Mariami"]
[Result "0-1"]
[ECO "D43"]
[WhiteElo "1671"]
[BlackElo "1963"]
[Annotator "NA"]
[PlyCount "82"]
[EventDate "2021.03.18"]
[EventType "swiss"]
[EventCountry "GEO"]
[SourceTitle "playchess.com"]
[Source "ChessBase"]
[SourceQuality "1"]
[TimeControl "5400+30"]

1. d4 {[%emt 0:07:34]} d5 {[%emt 0:00:00]} 2. c4 {[%emt 0:00:09]} dxc4 {[%emt 0:00:00]} 3. Nf3 {[%emt 0:04:40]} Nf6 {[%emt 0:00:00]} 4. Nc3 {[%emt 0:00:52]} e6 {[%emt 0:00:00]} 5. Qa4+ {[%emt 0:03:08]} c6 {[%emt 0:01:29]} 6. Qxc4 {[%emt 0:00:32]} b5 {[%emt 0:00:46]} 7. Qb3 {[%emt 0:02:47]} a6 {[%emt 0:02:49]} 8. g3 {[%emt 0:03:58]} Bb7 {[%emt 0:01:44]} 9. Bg2 {[%emt 0:03:48]} c5 {[%emt 0:00:13]} 10. dxc5 {[%emt 0:05:58]} Bxc5 {[%emt 0:00:44]} 11. O-O {[%emt 0:06:55]} O-O {[%emt 0:03:01]} 12. Bg5 {[%emt 0:01:33]} h6 {[%emt 0:08:36]} 13. Rad1 {[%emt 0:08:44]} Qe7 {[%emt 0:04:05]} 14. Bxf6 {[%emt 0:00:48]} Qxf6 {[%emt 0:00:18]} 15. Nd2 {[%emt 0:00:24]} Bxg2 {[%emt 0:06:55]} 16. Kxg2 {[%emt 0:00:07]} Qe7 {[%emt 0:06:09]} 17. a4 {[%emt 0:13:15]} Qb7+ {[%emt 0:14:29]} 18. Kg1 {[%emt 0:01:22]} b4 {[%emt 0:01:19]} 19. Nce4 {[%emt 0:00:08]} Be7 {[%emt 0:01:13]} 20. Qf3 {[%emt 0:00:22]} Qc6 {[%emt 0:07:59]} 21. Rc1 {[%emt 0:08:50]} Qxa4 {[%emt 0:02:59]} 22. Nc4 {[%emt 0:19:03]} Nd7 {[%emt 0:06:43]} 23. Rfd1 {[%emt 0:03:31]} Rad8 {[%emt 0:09:02]} 24. b3 {[%emt 0:01:24]} Qb5 {[%emt 0:00:01]} 25. Ned6 {[%emt 0:00:21]} Qb8 {[%emt 0:07:30]} 26. Qc6 {[%emt 0:00:32]} Nb6 {[%emt 0:10:56]} 27. Nxb6 {[%emt 0:02:04]} Rxd6 {[%emt 0:00:05]} 28. Rxd6 {[%emt 0:00:12]} Qxd6 {[%emt 0:00:03]} 29. Nc8 {[%emt 0:00:09]} Qd8 {[%emt 0:01:14]} 30. Nxe7+ {[%emt 0:00:06]} Qxe7 {[%emt 0:00:03]} 31. Qxa6 {[%emt 0:00:07]} Rd8 {[%emt 0:00:44]} 32. Rc8 {[%emt 0:01:39]} Kh7 {[%emt 0:00:52]} 33. Rxd8 {[%emt 0:00:21]} Qxd8 {[%emt 0:00:01]} 34. Qd3+ {[%emt 0:00:53]} Qxd3 {[%emt 0:00:12]} 35. exd3 {[%emt 0:00:06]} Kg6 {[%emt 0:00:04]} 36. Kf1 {[%emt 0:00:11]} Kf5 {[%emt 0:00:15]} 37. f3 {[%emt 0:00:19]} Ke5 {[%emt 0:00:16]} 38. Ke2 {[%emt 0:00:08]} Kd4 {[%emt 0:00:03]} 39. Kd2 {[%emt 0:00:05]} g5 {[%emt 0:02:01]} 40. h3 {[%emt 0:02:17]} h5 {[%emt 0:00:33]} 41. g4 {[%emt 0:00:35]} h4 {[%emt 0:00:05]} 0-1

[Event "78th GEO-ch Women 1st League 2021"]
[Site "Tbilisi"]
[Date "2021.03.23"]
[Round "6.6"]
[White "Esadze, Tamari"]
[Black "Sichinava, Mariam"]
[Result "0-1"]
[ECO "B41"]
[WhiteElo "1889"]
[BlackElo "1516"]
[Annotator "NA"]
[PlyCount "82"]
[EventDate "2021.03.18"]
[EventType "swiss"]
[EventCountry "GEO"]
[SourceTitle "playchess.com"]
[Source "ChessBase"]
[SourceQuality "1"]
[TimeControl "5400+30"]

1. e4 {[%emt 0:00:00]} c5 {[%emt 0:09:36]} 2. Nf3 {[%emt 0:00:00]} e6 {[%emt 0:00:09]} 3. d4 {[%emt 0:00:12]} cxd4 {[%emt 0:00:32]} 4. Nxd4 {[%emt 0:00:04]} a6 {[%emt 0:00:04]} 5. c4 {[%emt 0:00:04]} Nf6 {[%emt 0:00:05]} 6. Nc3 {[%emt 0:01:34]} Qc7 {[%emt 0:00:07]} 7. a3 {[%emt 0:01:12]} b6 {[%emt 0:01:43]} 8. Be3 {[%emt 0:01:49]} Bb7 {[%emt 0:00:13]} 9. Bd3 {[%emt 0:04:18]} Bd6 {[%emt 0:03:19]} 10. h3 {[%emt 0:04:45]} Nc6 {[%emt 0:00:06]} 11. O-O {[%emt 0:02:35]} O-O {[%emt 0:00:51]} 12. Rc1 {[%emt 0:07:06]} Nxd4 {[%emt 0:08:06]} 13. Bxd4 {[%emt 0:00:03]} Bc5 {[%emt 0:00:08]} 14. Bxc5 {[%emt 0:07:24]} bxc5 {[%emt 0:00:22]} 15. Qe2 {[%emt 0:01:46]} d6 {[%emt 0:05:55]} 16. f4 {[%emt 0:01:57]} Nd7 {[%emt 0:11:24]} 17. Rcd1 {[%emt 0:04:41]} Rad8 {[%emt 0:09:11]} 18. Bb1 {[%emt 0:03:16]} Kh8 {[%emt 0:09:24]} 19. Qc2 {[%emt 0:05:08]} f5 {[%emt 0:00:59]} 20. exf5 {[%emt 0:05:48]} exf5 {[%emt 0:00:01]} 21. Rfe1 {[%emt 0:07:35]} Nb8 {[%emt 0:08:53]} 22. Nd5 {[%emt 0:05:33]} Bxd5 {[%emt 0:02:24]} 23. cxd5 {[%emt 0:00:04]} Qf7 {[%emt 0:04:59]} 24. Re6 {[%emt 0:01:55]} Nc6 {[%emt 0:04:23]} 25. Qc4 {[%emt 0:03:23]} Nd4 {[%emt 0:00:29]} 26. Ree1 {[%emt 0:00:32]} Qg6 {[%emt 0:03:02]} 27. Kh2 {[%emt 0:05:06]} Qh6 {[%emt 0:04:31]} 28. Qc1 {[%emt 0:03:34]} Rfe8 {[%emt 0:03:05]} 29. Qd2 {[%emt 0:00:44]} Qh4 {[%emt 0:00:49]} 30. Ba2 {[%emt 0:05:33]} Re4 {[%emt 0:00:52]} 31. Rxe4 {[%emt 0:03:24]} fxe4 {[%emt 0:00:03]} 32. Bb1 {[%emt 0:02:03]} Re8 {[%emt 0:01:06]} 33. Rf1 {[%emt 0:03:21]} e3 {[%emt 0:01:30]} 34. Qe1 {[%emt 0:02:00]} Qh6 {[%emt 0:01:36]} 35. Bd3 {[%emt 0:01:32]} e2 {[%emt 0:01:55]} 36. Rf2 {[%emt 0:01:06]} Qh5 {[%emt 0:00:10]} 37. f5 {[%emt 0:01:32]} Re3 {[%emt 0:01:19]} 38. f6 {[%emt 0:03:38]} gxf6 {[%emt 0:00:15]} 39. Bb1 {[%emt 0:01:03]} Qe5+ {[%emt 0:00:53]} 40. Kg1 {[%emt 0:01:08]} Qg3 {[%emt 0:00:09]} 41. Be4 {[%emt 0:01:02]} Rxe4 {[%emt 0:00:17]} 0-1

[Event "78th GEO-ch Women 1st League 2021"]
[Site "Tbilisi"]
[Date "2021.03.23"]
[Round "6.7"]
[White "Mgeladze, Kesaria"]
[Black "Kirtadze, Anastasia"]
[Result "0-1"]
[ECO "B23"]
[WhiteElo "1380"]
[BlackElo "1810"]
[Annotator "NA"]
[PlyCount "118"]
[EventDate "2021.03.18"]
[EventType "swiss"]
[EventCountry "GEO"]
[SourceTitle "playchess.com"]
[Source "ChessBase"]
[SourceQuality "1"]
[TimeControl "5400+30"]

1. e4 {[%emt 0:00:05]} e6 {[%emt 0:00:00]} 2. Nc3 {[%emt 0:01:20]} c5 {[%emt 0:01:44]} 3. g3 {[%emt 0:01:40]} d5 {[%emt 0:02:54]} 4. Bg2 {[%emt 0:02:04]} dxe4 {[%emt 0:02:47]} 5. Nxe4 {[%emt 0:02:30]} Be7 {[%emt 0:00:45]} 6. d3 {[%emt 0:02:15]} Nf6 {[%emt 0:00:41]} 7. Nxf6+ {[%emt 0:02:18]} Bxf6 {[%emt 0:00:16]} 8. Nf3 {[%emt 0:03:07]} O-O {[%emt 0:03:32]} 9. O-O {[%emt 0:01:02]} Nc6 {[%emt 0:02:02]} 10. c3 {[%emt 0:01:48]} Qe7 {[%emt 0:05:24]} 11. Be3 {[%emt 0:03:46]} Rd8 {[%emt 0:02:58]} 12. Qe2 {[%emt 0:03:55]} Bd7 {[%emt 0:02:51]} 13. Rfd1 {[%emt 0:03:16]} Be8 {[%emt 0:02:39]} 14. Rd2 {[%emt 0:02:45]} e5 {[%emt 0:06:28]} 15. Rad1 {[%emt 0:04:46]} Bd7 {[%emt 0:04:25]} 16. h3 {[%emt 0:06:32]} Be6 {[%emt 0:04:00]} 17. b3 {[%emt 0:12:34]} a5 {[%emt 0:05:40]} 18. d4 {[%emt 0:04:56]} e4 {[%emt 0:04:42]} 19. Nh2 {[%emt 0:02:25]} cxd4 {[%emt 0:01:18]} 20. cxd4 {[%emt 0:00:14]} Bd5 {[%emt 0:00:11]} 21. Ng4 {[%emt 0:01:43]} a4 {[%emt 0:02:40]} 22. h4 {[%emt 0:03:52]} h6 {[%emt 0:01:49]} 23. bxa4 {[%emt 0:07:33]} Rxa4 {[%emt 0:00:30]} 24. Qb5 {[%emt 0:05:24]} Ra5 {[%emt 0:04:29]} 25. Qb1 {[%emt 0:00:13]} Re8 {[%emt 0:05:24]} 26. Rb2 {[%emt 0:02:14]} Na7 {[%emt 0:01:47]} 27. Rb6 {[%emt 0:02:16]} Nc6 {[%emt 0:07:35]} 28. Rxb7 {[%emt 0:00:49]} Qd8 {[%emt 0:00:10]} 29. Rb2 {[%emt 0:01:45]} Be7 {[%emt 0:01:04]} 30. Ne5 {[%emt 0:02:10]} Ba3 {[%emt 0:05:27]} 31. Rbd2 {[%emt 0:02:06]} Nb4 {[%emt 0:01:30]} 32. Bxe4 {[%emt 0:05:11]} Bxe4 {[%emt 0:00:38]} 33. Qxe4 {[%emt 0:00:03]} f6 {[%emt 0:00:30]} 34. Nc6 {[%emt 0:00:29]} Qd7 {[%emt 0:00:13]} 35. Qxe8+ {[%emt 0:00:19]} Qxe8 {[%emt 0:00:10]} 36. Nxa5 {[%emt 0:00:04]} Nd5 {[%emt 0:00:26]} 37. Nc4 {[%emt 0:00:14]} Bb4 {[%emt 0:02:03]} 38. Rb2 {[%emt 0:00:31]} Qh5 {[%emt 0:02:14]} 39. Rdb1 {[%emt 0:00:22]} Bc3 {[%emt 0:00:17]} 40. Rb8+ {[%emt 0:00:36]} Kh7 {[%emt 0:00:07]} 41. R8b7 {[%emt 0:01:49]} Qf3 {[%emt 0:01:15]} 42. Rd7 {[%emt 0:00:37]} Nb4 {[%emt 0:02:10]} 43. Nd2 {[%emt 0:01:58]} Qf5 {[%emt 0:01:12]} 44. Rb7 {[%emt 0:01:46]} Bxd2 {[%emt 0:00:30]} 45. R7xb4 {[%emt 0:00:15]} Bxb4 {[%emt 0:04:22]} 46. Rxb4 {[%emt 0:00:04]} Qa5 {[%emt 0:00:04]} 47. Rb2 {[%emt 0:00:12]} Kg6 {[%emt 0:00:12]} 48. Rd2 {[%emt 0:00:10]} Qd5 {[%emt 0:00:27]} 49. Rc2 {[%emt 0:00:29]} Qa5 {[%emt 0:01:20]} 50. Rd2 {[%emt 0:00:13]} Qd5 {[%emt 0:00:25]} 51. a4 {[%emt 0:00:03]} Kf5 {[%emt 0:00:56]} 52. Rb2 {[%emt 0:00:29]} Kg4 {[%emt 0:00:28]} 53. Kh2 {[%emt 0:00:27]} Kf3 {[%emt 0:01:27]} 54. Rb1 {[%emt 0:01:03]} g5 {[%emt 0:00:43]} 55. h5 {[%emt 0:01:07]} Qf7 {[%emt 0:00:45]} 56. Rh1 {[%emt 0:01:00]} f5 {[%emt 0:00:39]} 57. Kg1 {[%emt 0:00:36]} f4 {[%emt 0:00:50]} 58. Bc1 {[%emt 0:00:36]} Qc4 {[%emt 0:00:13]} 59. Bb2 {[%emt 0:01:36]} Qe2 {[%emt 0:00:12]} 0-1